fUST/lending_fUST_20240831
["ID","MTS","AMOUNT","RATE_DAILY","PERIOD"]
[336732187,1725085841495,-559.39026391,0.00032876,31]
[336732188,1725085841505,-500.0,0.00032876,31]
[336732189,1725085841514,-500.0,0.00032876,31]
[336732190,1725085841524,-500.0,0.00032876,31]
[336732191,1725085841533,-500.0,0.00032876,31]
[336732192,1725085841543,-500.0,0.00032876,31]
[336732193,1725085841553,-500.0,0.00032876,31]
[336732194,1725085841563,-500.64101874,0.00032876,31]
[336732195,1725085841573,-501.26018785,0.00032876,31]
[336732196,1725085841582,-500.0,0.00032876,31]
[336732197,1725085841717,-500.0,0.00032876,31]
[336732198,1725085841727,-323.56679633,0.00032876,31]
[336732199,1725085841736,-500.0,0.00032876,31]
[336732200,1725085841746,-508.35225848,0.00032876,31]
[336732201,1725085841755,-500.99134031,0.00032876,31]
[336732202,1725085841765,-500.0,0.00032876,31]
[336732203,1725085841774,-500.0,0.00032876,31]
[336732204,1725085841783,-500.0,0.00032876,31]
[336732205,1725085841792,-500.0,0.00032876,31]
[336732206,1725085841801,-500.0,0.00032876,31]
[336732207,1725085841811,-509.20145973,0.00032876,31]
[336732208,1725085841820,-500.0,0.00032876,31]
[336732209,1725085841831,-500.0,0.00032876,31]
[336732210,1725085841840,-500.0,0.00032876,31]
[336732212,1725085841851,-500.0,0.00032876,31]
[336732213,1725085841861,-1421.44,0.00032876,31]
[336732214,1725085841870,-500.0,0.00032876,31]
[336732215,1725085841879,-500.85474745,0.00032876,31]
[336732216,1725085841889,-594.47995812,0.00032876,31]
[336732217,1725085841898,-500.0,0.00032876,31]
[336732218,1725085841907,-500.0,0.00032876,31]
[336732219,1725085841917,-500.0,0.00032876,31]
[336732220,1725085841927,-500.0,0.00032876,31]
[336732221,1725085841938,-500.0,0.00032876,31]
[336732222,1725085841950,-500.0,0.00032876,31]
[336732223,1725085841960,-500.0,0.00032876,31]
[336732224,1725085841971,-500.0,0.00032876,31]
[336732225,1725085841980,-500.0,0.00032876,31]
[336732226,1725085841990,-185.83635143,0.00032876,31]
[336732227,1725085841999,-497.23521605,0.00032876,31]
[336732228,1725085842009,-501.30714064,0.00032876,31]
[336732229,1725085842018,-500.0,0.00032876,31]
[336732230,1725085842028,-534.41622212,0.00032876,31]
[336732231,1725085842037,-500.0,0.00032876,31]
[336732232,1725085842046,-503.36922035,0.00032876,31]
[336732233,1725085842055,-500.0,0.00032876,31]
[336732234,1725085842064,-500.0,0.00032876,31]
[336732235,1725085842073,-500.0,0.00032876,31]
[336732236,1725085842082,-500.60872261,0.00032876,31]
[336732237,1725085842091,-500.0,0.00032876,31]
[336732238,1725085842100,-500.0,0.00032876,31]
[336732239,1725085842109,-500.60292882,0.00032876,31]
[336732240,1725085842118,-500.0,0.00032876,31]
[336732241,1725085842128,-500.0,0.00032876,31]
[336732242,1725085842137,-500.0,0.00032876,31]
[336732243,1725085842149,-500.0,0.00032876,31]
[336732244,1725085842159,-500.0,0.00032876,31]
[336732245,1725085842169,-500.0,0.00032876,31]
[336732246,1725085842178,-501.76186772,0.00032876,31]
[336732247,1725085842189,-500.0,0.00032876,31]
[336732248,1725085842198,-500.0,0.00032876,31]
[336732249,1725085842207,-501.23510367,0.00032876,31]
[336732250,1725085842217,-500.0,0.00032876,31]
[336732251,1725085842227,-615.4591913,0.00032876,31]
[336732252,1725085842236,-282.0912993,0.00032876,31]
[336732253,1725085842246,-500.0,0.00032876,31]
[336732254,1725085842255,-500.0,0.00032876,31]
[336732255,1725085842265,-501.98144837,0.00032876,31]
[336732256,1725085842274,-500.0,0.00032876,31]
[336732257,1725085842283,-151.0,0.00032876,7]
[336732258,1725085842293,-501.2662707,0.00032876,31]
[336732259,1725085842302,-151.0,0.00032876,7]
[336732260,1725085842311,-151.0,0.00032876,7]
[336732261,1725085842321,-151.0,0.00032876,7]
[336732262,1725085842330,-151.0,0.00032876,7]
[336732263,1725085842340,-501.63803629,0.00032876,31]
[336732264,1725085842349,-500.0,0.00032876,31]
[336732265,1725085842358,-151.0,0.00032876,7]
[336732266,1725085842367,-500.0,0.00032876,31]
[336732267,1725085842377,-277.482666,0.00032876,7]
[336732268,1725085842386,-765.24,0.00032876,31]
[336732269,1725085842395,-500.0,0.00032876,31]
[336732270,1725085842404,-500.0,0.00032876,31]
[336732271,1725085842415,-500.0,0.00032876,31]
[336732272,1725085842425,-500.0,0.00032876,31]
[336732273,1725085842434,-503.52229456,0.00032876,31]
[336732274,1725085842442,-500.0,0.00032876,31]
[336732275,1725085842451,-501.31660467,0.00032876,31]
[336732276,1725085842461,-500.0,0.00032876,31]
[336732277,1725085842471,-501.14222906,0.00032876,31]
[336732278,1725085842480,-500.0,0.00032876,31]
[336732279,1725085842490,-500.0,0.00032876,31]
[336732280,1725085842499,-500.0,0.00032876,31]
[336732281,1725085842508,-505.79462828,0.00032876,31]
[336732282,1725085842517,-501.20367482,0.00032876,31]
[336732283,1725085842526,-556.62,0.00032876,31]
[336732284,1725085842535,-500.0,0.00032876,31]
[336732286,1725085842544,-500.0,0.00032876,31]
[336732287,1725085842553,-502.98172692,0.00032876,31]
[336732289,1725085842562,-500.0,0.00032876,31]
[336732291,1725085842571,-500.0,0.00032876,31]
[336732293,1725085842581,-151.0,0.00032876,7]
[336732295,1725085842591,-151.0,0.00032876,7]
[336732297,1725085842599,-500.0,0.00032876,31]
[336732299,1725085842608,-151.0,0.00032876,7]
[336732301,1725085842618,-151.0,0.00032876,7]
[336732302,1725085842628,-151.0,0.00032876,7]
[336732304,1725085842637,-151.0,0.00032876,7]
[336732306,1725085842646,-151.0,0.00032876,7]
[336732309,1725085842655,-151.0,0.00032876,7]
[336732313,1725085842664,-500.0,0.00032876,31]
[336732316,1725085842673,-151.0,0.00032876,7]
[336732318,1725085842682,-500.0,0.00032876,31]
[336732320,1725085842691,-500.0,0.00032876,31]
[336732321,1725085842701,-508.86978908,0.00032876,31]
[336732322,1725085842710,-500.29669474,0.00032876,31]
[336732323,1725085842720,-500.0,0.00032876,31]
[336732324,1725085842729,-500.0,0.00032876,31]
[336732326,1725085842738,-260.27296927,0.00032876,31]
[336732327,1725085842748,-151.0,0.00032876,7]
[336732328,1725085842757,-502.40744424,0.00032876,31]
[336732330,1725085842766,-500.0,0.00032876,31]
[336732332,1725085842775,-500.0,0.00032876,31]
[336732334,1725085842785,-501.1453586,0.00032876,31]
[336732335,1725085842794,-502.14149491,0.00032876,31]
[336732336,1725085842803,-500.0,0.00032876,31]
[336732337,1725085842812,-172.698913,0.00032876,7]
[336732338,1725085842822,-500.0,0.00032876,31]
[336732339,1725085842832,-172.698913,0.00032876,7]
[336732340,1725085842841,-508.5241578,0.00032876,31]
[336732341,1725085842850,-172.698913,0.00032876,7]
[336732342,1725085842859,-172.698913,0.00032876,7]
[336732343,1725085842869,-734.36,0.00032876,31]
[336732344,1725085842878,-172.698913,0.00032876,7]
[336732345,1725085842888,-172.698913,0.00032876,7]
[336732346,1725085842898,-172.698913,0.00032876,7]
[336732347,1725085842907,-172.698913,0.00032876,7]
[336732348,1725085842916,-172.698913,0.00032876,7]
[336732349,1725085842925,-172.698913,0.00032876,7]
[336732350,1725085842934,-172.698913,0.00032876,7]
[336732351,1725085842943,-500.0,0.00032876,31]
[336732352,1725085842952,-172.698913,0.00032876,7]
[336732353,1725085842961,-172.698913,0.00032876,7]
[336732354,1725085842971,-172.698913,0.00032876,7]
[336732355,1725085842980,-172.698913,0.00032876,7]
[336732356,1725085842989,-172.698913,0.00032876,7]
[336732357,1725085842998,-172.698913,0.00032876,7]
[336732358,1725085843007,-172.698913,0.00032876,7]
[336732359,1725085843016,-172.698913,0.00032876,7]
[336732360,1725085843025,-172.698913,0.00032876,7]
[336732361,1725085843035,-502.35617694,0.00032876,31]
[336732362,1725085843044,-500.0,0.00032876,31]
[336732363,1725085843053,-500.0,0.00032876,31]
[336732364,1725085843063,-500.0,0.00032876,31]
[336732365,1725085843072,-501.35180521,0.00032876,31]
[336732366,1725085843081,-500.0,0.00032876,31]
[336732367,1725085843090,-500.0,0.00032876,31]
[336732368,1725085843100,-500.0,0.00032876,31]
[336732369,1725085843109,-502.08387179,0.00032876,31]
[336732370,1725085843118,-500.0,0.00032876,31]
[336732371,1725085843127,-502.73692662,0.00032876,2]
[336732372,1725085843136,-500.0,0.00032876,31]
[336732373,1725085843150,-500.0,0.00032876,10]
[336732374,1725085843159,-500.0,0.00032876,31]
[336732375,1725085843168,-557.26,0.00032876,31]
[336732376,1725085843179,-557.26,0.00032876,31]
[336732377,1725085843189,-557.26,0.00032876,31]
[336732378,1725085843198,-557.26,0.00032876,31]
[336732379,1725085843208,-557.26,0.00032876,31]
[336732381,1725085843218,-557.26,0.00032876,31]
[336732383,1725085843230,-557.26,0.00032876,31]
[336732384,1725085843240,-557.26,0.00032876,31]
[336732385,1725085843249,-500.0,0.00032876,31]
[336732387,1725085843258,-557.26,0.00032876,31]
[336732389,1725085843268,-557.26,0.00032876,31]
[336732391,1725085843277,-557.26,0.00032876,31]
[336732393,1725085843287,-557.26,0.00032876,31]
[336732394,1725085843296,-500.0,0.00032876,31]
[336732395,1725085843305,-557.26,0.00032876,31]
[336732396,1725085843314,-557.26,0.00032876,31]
[336732397,1725085843323,-500.0,0.00032876,31]
[336732398,1725085843333,-557.26,0.00032876,31]
[336732399,1725085843342,-557.26,0.00032876,31]
[336732400,1725085843351,-500.0,0.00032876,31]
[336732401,1725085843361,-500.0,0.00032876,31]
[336732402,1725085843370,-540.82607167,0.00032876,31]
[336732403,1725085843379,-500.0,0.00032876,31]
[336732404,1725085843389,-505.00503207,0.00032876,31]
[336732405,1725085843398,-502.05489668,0.00032876,31]
[336732406,1725085843407,-500.0,0.00032876,31]
[336732407,1725085843419,-507.09070414,0.00032876,31]
[336732408,1725085843428,-503.84260751,0.00032876,31]
[336732409,1725085843437,-500.0,0.00032876,31]
[336732410,1725085843447,-500.0,0.00032876,31]
[336732411,1725085843456,-500.0,0.00032876,31]
[336732412,1725085843466,-500.0,0.00032876,31]
[336732413,1725085843476,-500.0,0.00032876,31]
[336732414,1725085843485,-569.3489529,0.00032876,31]
[336732415,1725085843495,-500.0,0.00032876,31]
[336732416,1725085843504,-500.0,0.00032876,31]
[336732417,1725085843513,-500.0,0.00032876,31]
[336732418,1725085843524,-500.0,0.00032876,31]
[336732419,1725085843534,-761.49,0.00032876,31]
[336732420,1725085843543,-500.0,0.00032876,31]
[336732421,1725085843553,-500.0,0.00032876,31]
[336732422,1725085843563,-500.0,0.00032876,31]
[336732423,1725085843572,-500.0,0.00032876,31]
[336732424,1725085843582,-473.78253858,0.00032876,31]
[336732425,1725085843591,-500.0,0.00032876,31]
[336732426,1725085843600,-502.73857234,0.00032876,31]
[336732427,1725085843610,-500.0,0.00032876,31]
[336732428,1725085843619,-500.86821217,0.00032876,31]
[336732429,1725085843628,-500.0,0.00032876,31]
[336732430,1725085843637,-500.0,0.00032876,31]
[336732431,1725085843646,-500.0,0.00032876,31]
[336732432,1725085843655,-500.0,0.00032876,31]
[336732433,1725085843664,-500.0,0.00032876,31]
[336732434,1725085843674,-368.5530967,0.00032876,31]
[336732435,1725085843998,-131.4469033,0.00032876,31]
[336732436,1725085844007,-178.96437264,0.00032876,31]
[336732448,1725085846232,-321.03562736,0.00032876,31]
[336732450,1725085846242,-305.64732862,0.00032876,31]
[336732452,1725085846254,-194.35267138,0.00032876,31]
[336732453,1725085846264,-130.98596071,0.00032876,7]
[336732454,1725085846276,-20.01403929,0.00032876,7]
[336732455,1725085846285,-151.0,0.00032876,7]
[336732456,1725085846294,-102.35932302,0.00032876,31]
[336732458,1725086200415,165.246659,0.00014247,2]
[336732459,1725086568264,262.047,0.00017,2]
[336732461,1725086749142,-259.9,0.00025,2]
[336732462,1725086749164,-300.0,0.00030773,2]
[336732463,1725086749185,-102.0397301,0.00030773,2]
[336732464,1725086827103,-357.92511795,0.00030773,2]
[336732465,1725086831093,-42.07488205,0.00030773,2]
[336732466,1725086831119,-232.0,0.00030773,2]
[336732467,1725086831144,-226.47485053,0.00030774,2]
[336732468,1725086833115,-1244.61121172,0.00030774,2]
[336732469,1725086834134,-1215.79446557,0.00030774,2]
[336732588,1725087040370,-9722.55229838,0.00030774,2]
[336732589,1725087040380,-165.246659,0.00031781,2]
[336732590,1725087040389,-162.784446,0.00031781,2]
[336732591,1725087040398,-1000.0,0.00032,32]
[336732592,1725087040407,-1414.70107316,0.00032766,2]
[336732593,1725087040417,-10000.0,0.000328,20]
[336732594,1725087040426,-2000.0,0.0003285,22]
[336732595,1725087040436,-21538.4393405,0.00032866,4]
[336732596,1725087040445,-767.96,0.00032866,3]
[336732597,1725087040455,-192.5,0.00032866,120]
[336732598,1725087040466,-199.4193202,0.00032875,2]
[336732599,1725087040475,-150.4907273,0.00032875,2]
[336732600,1725087040485,-745.07590371,0.00032875,2]
[336732601,1725087040494,-525.12148761,0.00032875,31]
[336732602,1725087040504,-618.29556347,0.00032876,5]
[336732603,1725087040513,-267.65360849,0.00032876,5]
[336732604,1725087040523,-151.0,0.00032876,7]
[336732605,1725087040532,-151.0,0.00032876,7]
[336732606,1725087040543,-151.0,0.00032876,7]
[336732607,1725087040554,-151.0,0.00032876,7]
[336732608,1725087040564,-151.0,0.00032876,7]
[336732609,1725087040576,-500.67920261,0.00032876,31]
[336732610,1725087040586,-500.0,0.00032876,31]
[336732611,1725087040595,-500.0,0.00032876,31]
[336732612,1725087040606,-500.0,0.00032876,31]
[336732613,1725087040617,-500.0,0.00032876,31]
[336732614,1725087040628,-500.0,0.00032876,31]
[336732615,1725087040639,-500.0,0.00032876,31]
[336732616,1725087040649,-500.0,0.00032876,31]
[336732617,1725087040658,-500.0,0.00032876,31]
[336732618,1725087040668,-500.0,0.00032876,31]
[336732619,1725087040678,-556.51046696,0.00032876,31]
[336732620,1725087040689,-500.0,0.00032876,31]
[336732621,1725087040701,-500.0,0.00032876,31]
[336732622,1725087040710,-503.43721127,0.00032876,31]
[336732623,1725087040721,-500.0,0.00032876,31]
[336732624,1725087040731,-500.0,0.00032876,31]
[336732625,1725087040742,-500.0,0.00032876,31]
[336732626,1725087040753,-500.0,0.00032876,31]
[336732627,1725087040762,-500.0,0.00032876,31]
[336732628,1725087040771,-500.0,0.00032876,31]
[336732629,1725087040781,-501.12832142,0.00032876,31]
[336732630,1725087040792,-500.0,0.00032876,31]
[336732631,1725087040802,-523.52,0.00032876,31]
[336732632,1725087040813,-500.0,0.00032876,31]
[336732633,1725087040825,-503.09682312,0.00032876,31]
[336732634,1725087040834,-500.0,0.00032876,31]
[336732635,1725087040845,-501.42617529,0.00032876,31]
[336732636,1725087040855,-500.06509318,0.00032876,31]
[336732637,1725087040864,-500.0,0.00032876,31]
[336732638,1725087040873,-382.83952515,0.00032876,31]
[336732639,1725087040883,-500.0,0.00032876,31]
[336732640,1725087040892,-500.0,0.00032876,31]
[336732641,1725087040902,-500.0,0.00032876,31]
[336732642,1725087040911,-500.0,0.00032876,31]
[336732643,1725087040920,-500.0,0.00032876,31]
[336732644,1725087040930,-500.0,0.00032876,31]
[336732645,1725087040940,-500.0,0.00032876,31]
[336732646,1725087040949,-500.0,0.00032876,31]
[336732647,1725087040958,-500.0,0.00032876,31]
[336732648,1725087040968,-500.0,0.00032876,10]
[336732649,1725087040977,-502.09740774,0.00032876,31]
[336732650,1725087040987,-500.0,0.00032876,31]
[336732651,1725087040999,-500.0,0.00032876,31]
[336732652,1725087041011,-500.0,0.00032876,31]
[336732653,1725087041022,-500.0,0.00032876,31]
[336732654,1725087041032,-500.89240271,0.00032876,31]
[336732655,1725087041167,-500.0,0.00032876,31]
[336732656,1725087041179,-500.0,0.00032876,31]
[336732657,1725087041191,-500.0,0.00032876,31]
[336732658,1725087041202,-501.14961915,0.00032876,2]
[336732659,1725087041214,-500.0,0.00032876,31]
[336732660,1725087041226,-500.0,0.00032876,31]
[336732661,1725087041237,-500.0,0.00032876,31]
[336732662,1725087041249,-500.0,0.00032876,31]
[336732663,1725087041263,-500.0,0.00032876,31]
[336732664,1725087041273,-703.76,0.00032876,31]
[336732665,1725087041282,-500.0,0.00032876,31]
[336732666,1725087041292,-502.096028,0.00032876,31]
[336732667,1725087041302,-500.0,0.00032876,31]
[336732668,1725087041311,-501.19838395,0.00032876,31]
[336732669,1725087041321,-500.0,0.00032876,31]
[336732670,1725087041330,-500.0,0.00032876,31]
[336732671,1725087041339,-500.0,0.00032876,31]
[336732672,1725087041348,-500.0,0.00032876,31]
[336732673,1725087041357,-336.76082725,0.00032876,31]
[336732674,1725087041367,-500.0,0.00032876,31]
[336732675,1725087041376,-500.0,0.00032876,31]
[336732676,1725087041385,-500.0,0.00032876,31]
[336732677,1725087041395,-500.0,0.00032876,31]
[336732678,1725087041404,-500.0,0.00032876,31]
[336732679,1725087041413,-500.61612431,0.00032876,31]
[336732680,1725087041422,-500.0,0.00032876,31]
[336732681,1725087041431,-500.0,0.00032876,31]
[336732682,1725087041440,-206.14012,0.00032876,7]
[336732683,1725087041450,-501.95150194,0.00032876,31]
[336732684,1725087041460,-206.14012,0.00032876,7]
[336732685,1725087041469,-206.14012,0.00032876,7]
[336732686,1725087041479,-206.14012,0.00032876,7]
[336732687,1725087041489,-206.14012,0.00032876,7]
[336732688,1725087041498,-206.14012,0.00032876,7]
[336732689,1725087041508,-206.14012,0.00032876,7]
[336732690,1725087041518,-206.14012,0.00032876,7]
[336732691,1725087041527,-206.14012,0.00032876,7]
[336732692,1725087041536,-206.14012,0.00032876,7]
[336732693,1725087041546,-206.14012,0.00032876,7]
[336732694,1725087041555,-206.14012,0.00032876,7]
[336732695,1725087041566,-500.0,0.00032876,31]
[336732696,1725087041575,-206.14012,0.00032876,7]
[336732697,1725087041584,-206.14012,0.00032876,7]
[336732698,1725087041594,-206.14012,0.00032876,7]
[336732699,1725087041603,-206.14012,0.00032876,7]
[336732700,1725087041612,-500.0,0.00032876,31]
[336732701,1725087041622,-206.14012,0.00032876,7]
[336732702,1725087041632,-500.0,0.00032876,31]
[336732703,1725087041641,-206.14012,0.00032876,7]
[336732704,1725087041651,-206.14012,0.00032876,7]
[336732705,1725087041661,-504.02186435,0.00032876,31]
[336732706,1725087041671,-206.140122,0.00032876,7]
[336732707,1725087041681,-508.07591935,0.00032876,31]
[336732708,1725087041692,-500.0,0.00032876,31]
[336732709,1725087041702,-500.0,0.00032876,31]
[336732710,1725087041711,-500.0,0.00032876,31]
[336732711,1725087041721,-500.0,0.00032876,31]
[336732712,1725087041730,-500.0,0.00032876,31]
[336732713,1725087041739,-500.0,0.00032876,31]
[336732714,1725087041748,-502.69802898,0.00032876,31]
[336732715,1725087041758,-500.0,0.00032876,31]
[336732716,1725087041769,-643.5129002,0.00032876,31]
[336732717,1725087041779,-500.0,0.00032876,31]
[336732718,1725087041788,-521.9298775,0.00032876,31]
[336732719,1725087041798,-500.0,0.00032876,31]
[336732720,1725087041807,-621.68692903,0.00032876,31]
[336732721,1725087041817,-401.60866424,0.00032876,31]
[336732722,1725087041827,-500.0,0.00032876,31]
[336732723,1725087041836,-504.00806215,0.00032876,31]
[336732724,1725087041846,-500.0,0.00032876,31]
[336732725,1725087041856,-500.0,0.00032876,31]
[336732726,1725087041866,-507.92766186,0.00032876,31]
[336732727,1725087041875,-500.0,0.00032876,31]
[336732728,1725087041885,-500.0,0.00032876,31]
[336732729,1725087041894,-500.0,0.00032876,31]
[336732730,1725087041905,-49.21094222,0.00032876,31]
[336732731,1725087041926,-452.21679761,0.00032876,31]
[336732732,1725087041939,-500.0,0.00032876,31]
[336732733,1725087041948,-500.0,0.00032876,31]
[336732734,1725087041957,-151.0,0.00032876,7]
[336732735,1725087041968,-500.0,0.00032876,31]
[336732736,1725087041978,-500.0,0.00032876,31]
[336732737,1725087041987,-503.60677567,0.00032876,30]
[336732738,1725087041997,-500.0,0.00032876,31]
[336732739,1725087042006,-506.59061115,0.00032876,31]
[336732740,1725087042015,-500.0,0.00032876,31]
[336732741,1725087042025,-503.47924287,0.00032876,31]
[336732742,1725087042035,-500.0,0.00032876,31]
[336732743,1725087042045,-500.0,0.00032876,31]
[336732744,1725087042055,-500.0,0.00032876,31]
[336732745,1725087042065,-420.15115019,0.00032876,31]
[336732784,1725087464540,165.246659,0.00014247,2]
[336732785,1725087958131,-200.0,0.0003,60]
[336732786,1725087958151,-1183.32120751,0.00030813,2]
[336732787,1725088045140,-1994.3807441,0.00030908,2]
[336732788,1725088045162,-250.000002,0.00031146,2]
[336732789,1725088045185,-162.784446,0.00031781,2]
[336732790,1725088045207,-684.20410319,0.00032,32]
[336732791,1725088050104,-315.79589681,0.00032,32]
[336732792,1725088050127,-151.0,0.00032464,7]
[336732793,1725088050151,-748.86793747,0.00032776,2]
[336732794,1725088050174,-876.17005991,0.00032776,2]
[336732795,1725088051229,-361.69337914,0.00032776,2]
[336732796,1725088051251,-154.0,0.00032799,2]
[336732797,1725088051273,-535.62201453,0.000328,7]
[336732798,1725088053146,-940.17910886,0.000328,7]
[336732799,1725088232344,-1083.13050916,0.00032776,2]
[336732800,1725088232353,-976.27115631,0.000328,7]
[336732801,1725088232365,-1980.49964349,0.000328,7]
[336732802,1725088232376,-1057.53016037,0.000328,7]
[336732809,1725088238598,-4509.89791644,0.000328,7]
[336732810,1725088238608,-9312.56180671,0.00032866,4]
[336732811,1725088238774,-343.48547726,0.00032866,4]
[336732812,1725088238786,-450.99942356,0.00032866,4]
[336732864,1725088240534,-257.64479267,0.00032866,4]
[336732866,1725088240544,-357.91,0.00032866,3]
[336732868,1725088240553,-192.5,0.00032866,120]
[336732869,1725088240563,-150.4907273,0.00032875,2]
[336732871,1725088240573,-481.76050947,0.00032875,2]
[336732874,1725088240582,-188.03404157,0.00032875,2]
[336732876,1725088240591,-1229.00281636,0.00032875,2]
[336732878,1725088240602,-848.88667084,0.00032876,5]
[336732880,1725088240611,-1764.43121455,0.00032876,5]
[336732882,1725088240620,-500.0,0.00032876,31]
[336732884,1725088240631,-508.07591935,0.00032876,31]
[336732886,1725088240640,-510.12494628,0.00032876,31]
[336732887,1725088240652,-500.0,0.00032876,31]
[336732889,1725088240662,-500.0,0.00032876,31]
[336732890,1725088240671,-392.78205919,0.00032876,31]
[336732891,1725088240681,-500.0,0.00032876,31]
[336732892,1725088240691,-500.0,0.00032876,31]
[336732893,1725088240701,-500.0,0.00032876,31]
[336732894,1725088240710,-502.69802898,0.00032876,31]
[336732895,1725088240719,-500.0,0.00032876,31]
[336732896,1725088240728,-500.0,0.00032876,31]
[336732897,1725088240738,-500.0,0.00032876,31]
[336732898,1725088240747,-500.0,0.00032876,31]
[336732899,1725088240757,-500.0,0.00032876,31]
[336732900,1725088240767,-165.79316252,0.00032876,31]
[336732901,1725088240777,-521.9298775,0.00032876,31]
[336732902,1725088240787,-401.60866424,0.00032876,31]
[336732903,1725088240797,-500.0,0.00032876,31]
[336732904,1725088240807,-503.50625666,0.00032876,31]
[336732905,1725088240818,-500.93726923,0.00032876,31]
[336732906,1725088240829,-500.0,0.00032876,31]
[336732907,1725088240839,-500.0,0.00032876,31]
[336732908,1725088240850,-500.0,0.00032876,31]
[336732909,1725088240859,-500.0,0.00032876,31]
[336732910,1725088240868,-500.0,0.00032876,31]
[336732911,1725088240877,-500.0,0.00032876,31]
[336732912,1725088240886,-500.0,0.00032876,31]
[336732913,1725088240897,-151.0,0.00032876,7]
[336732914,1725088240907,-151.0,0.00032876,7]
[336732915,1725088240918,-151.0,0.00032876,7]
[336732916,1725088240929,-151.0,0.00032876,7]
[336732917,1725088240941,-151.0,0.00032876,7]
[336732918,1725088240951,-151.0,0.00032876,7]
[336732919,1725088240964,-151.0,0.00032876,7]
[336732920,1725088240974,-151.0,0.00032876,7]
[336732921,1725088240984,-151.0,0.00032876,7]
[336732922,1725088240995,-500.0,0.00032876,31]
[336732923,1725088241004,-151.0,0.00032876,7]
[336732925,1725088241013,-151.0,0.00032876,7]
[336732926,1725088241022,-500.0,0.00032876,31]
[336732927,1725088241033,-503.56032446,0.00032876,31]
[336732928,1725088241042,-500.61532296,0.00032876,31]
[336732929,1725088241051,-500.0,0.00032876,31]
[336732930,1725088241060,-560.77461607,0.00032876,31]
[336732931,1725088241070,-308.87016453,0.00032876,31]
[336732932,1725088241080,-501.87905117,0.00032876,31]
[336732933,1725088241090,-500.0,0.00032876,31]
[336732934,1725088241102,-500.0,0.00032876,31]
[336732935,1725088241114,-501.19838395,0.00032876,31]
[336732936,1725088241123,-500.0,0.00032876,31]
[336732937,1725088241132,-500.0,0.00032876,31]
[336732938,1725088241142,-500.0,0.00032876,31]
[336732939,1725088241153,-500.0,0.00032876,31]
[336732940,1725088241163,-500.0,0.00032876,31]
[336732941,1725088241174,-500.0,0.00032876,31]
[336732942,1725088241186,-500.61612431,0.00032876,31]
[336732943,1725088241197,-500.0,0.00032876,31]
[336732944,1725088241207,-500.0,0.00032876,31]
[336732945,1725088241217,-500.0,0.00032876,31]
[336732946,1725088241226,-151.0,0.00032876,7]
[336732947,1725088241237,-500.0,0.00032876,31]
[336732948,1725088241247,-501.87291935,0.00032876,31]
[336732949,1725088241258,-500.0,0.00032876,31]
[336732950,1725088241268,-621.68692903,0.00032876,31]
[336732951,1725088241279,-500.0,0.00032876,31]
[336732952,1725088241288,-500.0,0.00032876,7]
[336732953,1725088241298,-507.92766186,0.00032876,31]
[336732954,1725088241309,-501.16698063,0.00032876,31]
[336732955,1725088241321,-151.0,0.00032876,7]
[336732956,1725088241331,-500.0,0.00032876,31]
[336732957,1725088241341,-500.0,0.00032876,31]